Cogmind - Beta 16 @@@ ROGUE MODE // 2025.12.26 @ 07:15:21 Player: Moose Result: Destroyed by G-34 Mercenary with Small Laser Performance ------------- Evolutions (1) 500 Regions Visited (4) 800 Robots Destroyed (40) 200 Value Destroyed (1148) 1148 Prototype IDs (0) 0 Alien Tech Used (0) 0 Bonus (0) 0 TOTAL SCORE: 2648 Bonus ------- None Cogmind --------- Core Integrity 0/400 Matter 272/300 Energy 100/100 System Corruption 1% Temperature Cool (6) Movement Core (1400) Ox27 Location -9/Storage Parts ------- > --- POWER (1) -------- (None) > --- PROPULSION (3) --- (None) > --- UTILITY (3) ------ Huge Storage Unit Signal Interpreter > --- WEAPON (2) ------- Shotgun > --- INVENTORY (25) --- Improved Heat Sink Medium Storage Unit High-capacity Matter Pod (200) Improved Terrain Scanner Seismic Detector ECM Suite Drone Bay (2/2) Small Laser Small Laser Small Laser Mining Laser Peak State ------------ > --- POWER ------------ Light Nuclear Core > --- PROPULSION ------- Light Treads Light Treads > --- UTILITY ---------- Small Storage Unit Improved Terrain Scanner > --- WEAPON ----------- Medium Laser Light Assault Rifle > --- INVENTORY -------- Ion Engine Aluminum Leg Aluminum Leg Aluminum Leg Seismic Detector Tractor Beam EM Pulse Gun [Rating: 11] Favorites ----------- Power Ion Engine Engine Ion Engine Power Core Light Nuclear Core Propulsion Light Treads Treads Light Treads Leg Aluminum Leg Utility Signal Interpreter Device Tractor Beam Storage Huge Storage Unit Processor Signal Interpreter Protection Power Shielding Weapon Light Assault Rifle Energy Gun Medium Laser Ballistic Gun Light Assault Rifle Special Weapon Mining Laser Build | -11 -10 -10 -9 -9 ------- Run | Yrd Mat Min Mat Sto Slots Evolved 2 | . . . 2 . Power . | . . . . . Propulsion 1 | . . . 1 . Utility 1 | . . . 1 . Weapon . | . . . . . Parts Attached 27 | 7 3 . 7 10 Power 5 | 1 2 . . 2 Engine 4 | 1 1 . . 2 Core 1 | . 1 . . . Reactor . | . . . . . Propulsion 6 | 2 . . 3 1 Treads 3 | 2 . . . 1 Leg 3 | . . . 3 . Wheel . | . . . . . Hover . | . . . . . Flight . | . . . . . Utility 8 | 2 1 . 3 2 Device 3 | 1 1 . 1 . Storage 3 | 1 . . 1 1 Processor 1 | . . . 1 . Hackware . | . . . . . Protection 1 | . . . . 1 Artifact . | . . . . . Weapon 8 | 2 . . 1 5 Energy Gun 3 | 1 . . 1 1 Energy Cannon . | . . . . . Ballistic Gun 4 | 1 . . . 3 Ballistic Cannon . | . . . . . Launcher . | . . . . . Special Weapon 1 | . . . . 1 Impact Weapon . | . . . . . Slashing Weapon . | . . . . . Piercing Weapon . | . . . . . Special Melee Weapon . | . . . . . Unidentified Prototypes . | . . . . . Parts Lost 14 | . . . 2 12 Power 3 | . . . . 3 Propulsion 5 | . . . 1 4 Utility 1 | . . . . 1 Weapon 5 | . . . 1 4 Highest Loss Streak 3 | . . . 2 3 To Critical Strikes . | . . . . . Average Backups 7 | 3 6 8 6 9 Power . | . 1 2 2 . Propulsion . | 1 2 2 . . Utility 4 | . 1 3 2 6 Weapon 1 | . 1 1 . 2 Tool/Special . | . . . . . Unused Backups 8 | . 1 . . 7 Power 1 | . . . . 1 Propulsion 1 | . 1 . . . Utility 4 | . . . . 4 Weapon 2 | . . . . 2 Tool/Special . | . . . . . Average Slot Usage (%) 85 | . 99 100 99 77 Engine 5 | . 5 . 4 6 Core 2 | . 8 14 6 . Treads 10 | . 28 28 21 3 Leg 10 | . . . 11 13 Device 8 | . 14 14 19 2 Storage 11 | . 14 14 11 11 Processor 7 | . . . 2 11 Protection 4 | . . . . 7 Energy Gun 11 | . 14 14 11 10 Ballistic Gun 10 | . 14 14 10 9 Peak Build Rating 11 | 9 11 10 11 11 Average Rating 8 | 5 9 10 10 8 On Entrance 7 | . 9 10 10 10 Avg Prop Armor Cover (%) 6 | . . . 6 10 Naked Turns . | . . . . . Heaviest Build 90 | 14 14 14 21 90 Greatest Support 40 | 40 40 40 40 30 Greatest Overweight (x) 29 | . . . . 29 Average Overweight (x) 1 | . . . . 3 Largest Inventory Capacity 25 | 8 8 8 10 25 Average Capacity 16 | 7 8 8 8 22 Most Carried 12 | 6 8 8 9 12 Average Carried 8 | 3 6 8 6 9 Final Capacity 25 | 8 8 8 10 25 Final Carried 11 | 5 8 8 9 11 Class Distribution -------------------- 100% | Mutant Dominant Class ---------------- Mutant | -10/Materials Mutant | -10/Mines Mutant | -9/Materials Mutant | -9/Storage Resources | -11 -10 -10 -9 -9 ----------- Run | Yrd Mat Min Mat Sto Matter Collected 765 | 250 69 8 109 329 Remotely 194 | . 34 8 109 43 Salvage Created 1390 | 32 130 41 376 811 Parts 83 | 6 7 5 19 46 Haulers Intercepted 1 | . . . . 1 Recyclers Shooed 5 | . 1 . 1 3 Parts Field Recycled . | . . . . . Retrieved Matter . | . . . . . Parts Self-Destructed . | . . . . . Prevented . | . . . . . Parts Restored . | . . . . . Kills | -11 -10 -10 -9 -9 ------- Run | Yrd Mat Min Mat Sto Combat Hostiles Destroyed 34 | . 2 3 9 20 Guns 32 | . 2 3 9 18 AOE 1 | . . . . 1 Classes Destroyed 7 | 1 2 1 1 2 Tunneler 2 | 2 . . . . Hauler 1 | . . . . 1 Watcher 3 | . 2 . 1 . Swarmer 7 | . . 3 1 3 Grunt 22 | . 2 . 7 13 Duelist 1 | . . . 1 . Sentry 4 | . . . . 4 Best Kill Streak 3 | 2 1 3 3 3 Combat Bots Only 3 | . 1 3 3 3 Max Kills in Single Turn 1 | 1 1 1 1 1 Gunslinging . | . . . . . Exploded 1 | . . . . 1 Melee . | . . . . . Uniques/NPCs Destroyed . | . . . . . Combat | -11 -10 -10 -9 -9 -------- Run | Yrd Mat Min Mat Sto Hostile Shots Fired 246 | . 18 18 67 143 Missed 61 | . 7 4 15 35 Hits 185 | . 11 14 52 108 Melee 1 | . . . 1 . Projectile 184 | . 11 14 51 108 Critical Strikes 4 | . . 1 . 3 Actively Blocked 1 | . . . . 1 Damage Taken 2170 | . 139 122 588 1321 Core 435 | . 18 9 127 281 Absorbed by Shields . | . . . . . Redirected to Shielding 31 | . . . . 31 Regen/Repaired (Parts) 107 | . 47 . . 60 Core Remaining (%) 94 | 100 . 89 . . Volleys Fired 159 | 8 17 8 41 85 Largest 2 | 2 2 2 2 2 Hottest 90 | 70 70 70 90 90 Shots Fired 290 | 16 34 16 79 145 Gun 290 | 16 34 16 79 145 Cannon . | . . . . . Launcher . | . . . . . Special . | . . . . . Kinetic 121 | 8 17 8 31 57 Thermal 152 | 8 17 8 41 78 Explosive . | . . . . . Electromagnetic 17 | . . . 7 10 Robot Hit Streak 16 | 4 7 3 16 13 Robot Miss Streak 3 | 1 1 3 3 3 Penetration Max . | . . . . . Secondary Targets 5 | . 1 1 2 1 Max Gunslinging Chain 1 | . 1 1 1 1 Shots Hit Robots 202 | 10 23 8 58 103 Core Hits 84 | 3 7 3 25 46 Critical Kills . | . . . . . Critical Parts Destroyed . | . . . . . Critical Strikes 7 | . 1 . 3 3 Burn 7 | . 1 . 3 3 Melee Attacks . | . . . . . Impact . | . . . . . Slashing . | . . . . . Piercing . | . . . . . Sneak Attacks . | . . . . . Combat Hostiles . | . . . . . Follow-up Attacks . | . . . . . Damage Inflicted 2346 | 114 247 83 692 1210 Guns 2245 | 107 244 83 660 1151 Cannons . | . . . . . Explosions 28 | . . . . 28 Melee . | . . . . . Ramming 73 | 7 3 . 32 31 Kinetic 755 | 45 93 33 174 410 Thermal 1373 | 62 151 50 410 700 Explosive . | . . . . . Electromagnetic 145 | . . . 76 69 Impact . | . . . . . Slashing . | . . . . . Piercing . | . . . . . Highest Corruption 1 | . . . . 1 Average Corruption 1 | . . . . 1 Corruption Purged . | . . . . . Corruption Blocked . | . . . . . Effects 1 | . . . . 1 Parts Rejected 1 | . . . . 1 Overload Shots . | . . . . . Overflow Damage . | . . . . . Projectiles . | . . . . . Explosions . | . . . . . Melee . | . . . . . Knockbacks . | . . . . . Impact . | . . . . . Kinetic . | . . . . . Secondary . | . . . . . Self-Inflicted Damage . | . . . . . Shots . | . . . . . Rammed 12 | 2 1 . 7 2 Targets Rammed 16 | 2 1 . 7 6 Kicked 4 | . . . . 4 Crushed . | . . . . . Highest Temperature 276 | 70 276 148 199 141 Average Temperature 56 | 30 121 75 62 30 Received Heat Transfer 912 | . 75 . 276 561 Siege Activations . | . . . . . Martial Activations . | . . . . . Shielding Activations . | . . . . . Robots Disrupted . | . . . . . Combat Hostiles . | . . . . . Robots Corrupted . | . . . . . Combat Hostiles . | . . . . . Parts Fried . | . . . . . Impact Corruptions . | . . . . . Robots Melted 1 | . . . . 1 Combat Hostiles 1 | . . . . 1 Parts Melted 9 | . 2 1 2 4 Heat Transferred 4281 | 185 518 148 1443 1987 Parts Sabotaged . | . . . . . Parts Stolen . | . . . . . Parts Stripped . | . . . . . Power Chain Reactions 1 | . . . . 1 Alert | -11 -10 -10 -9 -9 ------- Run | Yrd Mat Min Mat Sto Maximum Alert Level . | . . . . . Low Security (%) 100 | 100 100 100 100 100 Level 1 . | . . . . . Level 2 . | . . . . . Level 3 . | . . . . . Level 4 . | . . . . . Level 5 . | . . . . . High Security . | . . . . . Max Security . | . . . . . Peak Influence 95 | 10 40 60 64 95 Initial 23 | . . . 15 23 Average 22 | . 11 12 17 28 Influence Increases 937 | 10 81 70 234 542 Destroy 0b10 Robot/C 680 | . 40 60 180 400 Destroy 0b10 Robot/NC 30 | 10 10 . 5 5 Destroy Leader 148 | . 14 10 42 82 Successful Hack 29 | . 17 . 7 5 Destroy Structure 5 | . . . . 5 Lose Combat Pursuer 45 | . . . . 45 Influence Decreases 869 | 10 81 30 218 530 Entered New Map 58 | . . . 25 33 Time Decay 711 | 10 81 30 173 417 Lost Part 100 | . . . 20 80 Squads Dispatched 8 | . 1 . 3 4 Investigation 7 | . 1 . 3 3 Extermination . | . . . . . Reinforcement 1 | . . . . 1 Assault . | . . . . . Garrison . | . . . . . Intercept . | . . . . . Searches Triggered . | . . . . . Construction Impeded . | . . . . . Haulers Reinforced . | . . . . . Active Scanning Responses . | . . . . . Cargo Convoy Interrupts . | . . . . . Stealth | -11 -10 -10 -9 -9 --------- Run | Yrd Mat Min Mat Sto Distress Signals 7 | . . . 3 4 Communications Jammed . | . . . . . Distress Signals . | . . . . . Times Spotted 57 | . 5 3 18 31 Peak Tracking Total 4 | . 2 3 4 4 Tactical Retreats 6 | . . . 3 3 ECM-based Alert Blocks 4 | . . . 4 . Traps | -11 -10 -10 -9 -9 ------- Run | Yrd Mat Min Mat Sto Traps Triggered 4 | . 1 . 1 2 Indirectly . | . . . . . Trap Hack Attempts . | . . . . . Triggered . | . . . . . Disarmed . | . . . . . Reprogrammed . | . . . . . Reused . | . . . . . Traps Extracted . | . . . . . Installed . | . . . . . Triggered . | . . . . . Machines | -11 -10 -10 -9 -9 ---------- Run | Yrd Mat Min Mat Sto Machines Disabled . | . . . . . Max in Single Turn . | . . . . . Machines Repaired . | . . . . . Machines Dismantled . | . . . . . Machines Sabotaged . | . . . . . Overloaded Fab Kills . | . . . . . Hacking | -11 -10 -10 -9 -9 --------- Run | Yrd Mat Min Mat Sto Machines Accessed 8 | . 2 . 3 3 Terminals 5 | . 1 . 2 2 Fabricators . | . . . . . Repair Stations 2 | . 1 . . 1 Recycling Units 1 | . . . 1 . Scanalyzers . | . . . . . Garrison Access . | . . . . . Total Hacks 26 | . 10 . 10 6 Successful 18 | . 6 . 7 5 Failed 8 | . 4 . 3 1 Catastrophic . | . . . . . Database Lockouts . | . . . . . Manual . | . . . . . Terminals 19 | . 7 . 8 4 Fabricators . | . . . . . Repair Stations 5 | . 3 . . 2 Recycling Units 2 | . . . 2 . Scanalyzers . | . . . . . Garrison Access . | . . . . . Terminal Hacks 11 | . 3 . 5 3 Open Door 1 | . . . . 1 Branch Access Points 1 | . 1 . . . Alert Level 3 | . 1 . 1 1 Locate Traps 1 | . . . 1 . Dispatch Records 2 | . . . 1 1 Security Status 1 | . . . 1 . Patrol Status 1 | . 1 . . . Hauler Manifests 1 | . . . 1 . Fabricator Hacks . | . . . . . Repair Station Hacks 5 | . 3 . . 2 Scan Component 3 | . 2 . . 1 Repair 2 | . 1 . . 1 Recycling Unit Hacks 2 | . . . 2 . Process 1 | . . . 1 . Report Inventory 1 | . . . 1 . Scanalyzer . | . . . . . Garrison Access Hacks . | . . . . . Unauthorized Hacks . | . . . . . Terminals . | . . . . . Fabricators . | . . . . . Repair Stations . | . . . . . Recycling Units . | . . . . . Scanalyzers . | . . . . . Garrison Access . | . . . . . Data Cores Recovered . | . . . . . Used . | . . . . . Hacking Detections 5 | . 2 . 1 2 Full Trace Events 2 | . . . 1 1 Feedback Events 1 | . . . . 1 Corruption 1 | . . . . 1 Feedback Blocked . | . . . . . Robot Schematics Acquired . | . . . . . Robots Built . | . . . . . Authchips . | . . . . . Time . | . . . . . Total Robot Build Rating . | . . . . . Part Schematics Acquired . | . . . . . Parts Built . | . . . . . Authchips . | . . . . . Time . | . . . . . Total Part Build Rating . | . . . . . Part Studies Acquired . | . . . . . Parts Repaired 2 | . 1 . . 1 Time 52 | . 26 . . 26 Parts Recycled . | . . . . . Recycled Matter . | . . . . . Retrieved Matter . | . . . . . Retrieved Components . | . . . . . Parts Scanalyzed . | . . . . . Part Schematics Acquired . | . . . . . Parts Damaged . | . . . . . Bothacking | -11 -10 -10 -9 -9 ------------ Run | Yrd Mat Min Mat Sto Used RIF Installer . | . . . . . Robots Hacked . | . . . . . Non-combat . | . . . . . Combat . | . . . . . Robot Hacks Applied . | . . . . . Relay Couplers Released . | . . . . . Fabnet Peak Effective % . | . . . . . Robots Rewired . | . . . . . Allies Hacked . | . . . . . Hacks Repelled . | . . . . . Allies | -11 -10 -10 -9 -9 -------- Run | Yrd Mat Min Mat Sto Total Allies . | . . . . . Largest Group . | . . . . . Highest-Rated Group . | . . . . . Highest-Rated Ally . | . . . . . Total Orders . | . . . . . Ally Attacks . | . . . . . Total Damage . | . . . . . Kills . | . . . . . Allies Corrupted . | . . . . . Allies Melted . | . . . . . Intel | -11 -10 -10 -9 -9 ------- Run | Yrd Mat Min Mat Sto Active Infowar (turns) 611 | 12 111 . 488 . Terrain 123 | 12 111 . . . ECM 488 | . . . 488 . Robot Analysis Total . | . . . . . Derelict Logs Recovered 1 | . . 1 . . Drone Launches . | . . . . . Drone Recoveries . | . . . . . Exploration | -11 -10 -10 -9 -9 ------------- Run | Yrd Mat Min Mat Sto Turns Passed 3001 | 159 299 146 610 1787 Spaces Moved 1025 | 75 150 78 296 426 Core 29 | 4 . . . 25 Treads 672 | 71 150 78 284 89 Legs 324 | . . . 12 312 Wheels . | . . . . . Hover . | . . . . . Flight . | . . . . . Fastest Speed 50 | 50 160 160 120 120 Average Speed 241 | 154 160 160 158 357 Slowest Speed 1500 | 160 160 160 160 1500 Overloaded Moves . | . . . . . Propulsion Burnouts . | . . . . . Robots Hopped . | . . . . . Potential Cave-ins . | . . . . . Cave-ins Triggered . | . . . . . Exploration Rate (%) 25 | 4 24 24 37 39 Regions Visited 4 Branch Regions 2 Pre-discovered Areas 1 | . . 1 . . Known Exits Taken 2 | . 1 . 1 . Unknown Exits Taken 2 | 1 . 1 . . Scrap Searched . | . . . . . Spaces Dug . | . . . . . Terrain Destroyed 4 | . . . . 4 Melee . | . . . . . Projectile . | . . . . . AOE 4 | . . . . 4 Terrain Rammed . | . . . . . Walls Destroyed . | . . . . . Machines Disabled . | . . . . . Actions | -11 -10 -10 -9 -9 --------- Run | Yrd Mat Min Mat Sto Total 1271 | 103 178 85 358 547 Wait . | . . . . . Move 1021 | 74 149 77 295 426 Hop . | . . . . . Pick Up 38 | 12 6 . 6 14 Fast Attach . | . . . . . Attach 20 | 7 1 . 4 8 Detach . | . . . . . Swap 10 | . 2 . 4 4 Drop 7 | . 2 . 1 4 Fire 159 | 8 17 8 41 85 Melee . | . . . . . Ram . | . . . . . Kick 4 | . . . . 4 Crush 12 | 2 1 . 7 2 Escape Stasis . | . . . . . Rewire . | . . . . . Trap . | . . . . . Miscellaneous . | . . . . . Route ------- -11/Scrapyard -10/Materials -10/Mines -9/Materials (discovered 2 exits: [*Min] / *Sto) -9/Storage History --------- Turn | Location | Event 4 | -11/Scrapyard | Discovered new exit (range 15) 160 | -11/Scrapyard | Entered Materials 281 | -10/Materials | Repaired Ion Engine 317 | -10/Materials | Build established: Mutant 360 | -10/Materials | Identified exit to Mines 459 | -10/Materials | Entered Mines 501 | -10/Mines | Met a Derelict bent on vengeance 533 | -10/Mines | Learned location of Zion (-7) 595 | -10/Mines | Discovered new exit (range 5) 605 | -10/Mines | Entered Materials 605 | -9/Materials | Evolved 2 slots: Propulsion x1, Utility x1 839 | -9/Materials | Discovered new exit (range 12) 1066 | -9/Materials | Discovered new exit (range 11) 1201 | -9/Materials | Identified exit to Storage 1215 | -9/Materials | Entered Storage 1273 | -9/Storage | Repaired Med. Laser 1684 | -9/Storage | Core integrity fell below 50% 1769 | -9/Storage | Lost 3 parts (1p2n) 2455 | -9/Storage | Core integrity fell below 20% 3002 | -9/Storage | Destroyed by G-34 Mercenary with Small Laser Last Messages --------------- >>Enumerate(Squads) Retrieving dispatch records... Found 14 active squads: 7x Security 2x Surveillance 5x Transport Feedback: System corruption (+1%). ALERT: Suspicious activity at Terminal S002. Dispatching Investigation squad. K-01 Serf cleans the Component Storage. System corrupted: Power Shielding rejected. W-16 Scout sends out distress signal. Ion Engine destroyed. G-34 Mercenary destroyed. Switching to secondary target: G-34 Mercenary. G-34 Mercenary destroyed. Lgt. Assault Rifle destroyed. G-34 Mercenary destroyed. W-16 Scout destroyed. R-06 Scavenger collects Visual Processing Unit. Map ----- +----------------------------------------------------+ | ???????# #?????????????????????????????????? | | ???????# ############??????????????????????? | | ?????### ## #??????????????????????? | | ?????# + ## #??????????????????????? | | ?????# # ## #??????????????????????? | | ?????# ##+#### #??????????????????????? | | ?????# + #??????????????????????? | | ?????# ### #??????????????????????? | | ?????# #?# #??????????????????????? | | ?????# #?# #??????????????????????? | | ?????# #?#####+##################?????????? | | ?????# ###### ??????? | | ????## ??????? | | ????# ??????? | | ????# ##########################?????????? | | ????# ####### #???????????????????? | | ????# ##! !# "" #???????????????????? | | ????# ##### ##! !# "T #???????????????????? | | ????# ????# ##! !# "" #???????????????????? | | ????# ????# ## !# % #???????????????????? | | ????#?????# ### ## """""%#?????????#?????????? | | ??????????# + T# """"" #???????? #?????????? | | ??????????# # ## """"" #??????? #?????????? | | ??????????# ###### ! #?????? ???????????? | | ??????????# #????#+###/#########+##### ##???? | | ??????????# #????# =!*@r ??? | | ??????????# #????# %[%% a ??? | | ??????????# #????#**!=%= g ??? | | ??????#####+########%################?????????? | | ??????# % #??#%#????????????????????????? | | ??????## #??# #?????######?????????????? | | ???????# ####%###### #?????????????? | | ???????# # %% #?????????????? | | ???????# ! %+ T #?????????????? | | ???????# !! %# #?????????????? | | ???????# ### ####### #?????????????? | | ???????# "Y" ###+######## ##?????????????? | | ???????# """ ## # #??????????????? | | ???????########### """" # #??????????????? | | ?????????????????# "??" # #??????????????? | | ?????????????????# "??" + #??????????????? | | ?????????????????# "??" # #??????????????? | | ?????????????????# "??" #% #??????????????? | | ?????????????????# "??" # #??????????????? | | ?????????????????# ? #% #??????????????? | | ?????????????????########### #??????????????? | | ?????????????????########### #??????????????? | | ?????????????????# # #??????????????? | | ?????????????????# """ """ # #??????????????? | | ?????????????????# """ """ # #??????????????? | +----------------------------------------------------+ Best States ------------- Heat Dissipation 28 Energy Generation 14 Energy Capacity 250 Matter Stores 300 Matter Capacity 300 Sight Range 16 Terrain Scan Range 16 Terrain Scan Density 10 ECM Strength 1 Power Shielding 33 Evasion (%) 55 Recoil Reduction 2 Item Schematics ----------------- None Robot Schematics ------------------ None Fabricated ------------ Nothing Repaired ---------- Ion Engine | 21% | -10/Materials Med. Laser | 14% | -9/Storage Studied --------- None Alien Tech Used ----------------- None Achievements -------------- None Challenges ------------ None Game ------ Seed TachyonRingInterpreter Manual? 0 Play Time 00:26:46 Cumulative 5.0 hours Start 2025.12.26 @ 06:52:03 End 2025.12.26 @ 07:15:21 Sessions 1 Manual Loads 0 Difficulty Rogue Special Mode None Game No. 11 Rogue 11 Adventurer 0 Explorer 0 Win Type - Total 0 Types 0/0/0/0/0/0/0/0/0/0 Lore% 1 Gallery% 9 Achievement% 10 Wizard Run 0 Options --------- Layout 1 ASCII 0 Keyboard 0 Movement Arrows Keybinds 0 Fullscreen 1 Font 16/SmallcapsGlow Map View 55x38 Zoom Use 0% Tactical HUD 0 Map Filters NONE Filters NONE Steam 1 RUN: cadd9fb4-8c4e-4146-9aff-90e1236573ac